bitfinex-derivatives/quotes_BTCF0:USTF0_20250608
["timestamp","ask_amount","ask_price","bid_price","bid_amount"]
[1749354996510,1.1902111,105560.0,105550.0,0.5501933]
[1749354996711,1.7168111,105560.0,105550.0,0.5501933]
[1749354998512,1.7168111,105560.0,105550.0,0.3608]
[1749354998812,1.7168111,105560.0,105550.0,0.5501932]
[1749355006018,1.7168111,105560.0,105550.0,0.3608]
[1749355006821,0.1893933,105550.0,105540.0,1.2764144]
[1749355007022,0.62392111,105550.0,105540.0,1.2764144]
[1749355008019,0.62392111,105550.0,105540.0,1.2290618]
[1749355008214,0.65582111,105550.0,105540.0,1.2290618]
[1749355008419,0.65582111,105550.0,105540.0,1.2310618]
[1749355010319,0.65986989,105550.0,105540.0,1.2310618]
[1749355010518,0.75798989,105550.0,105540.0,1.2330618]
[1749355011019,0.78888989,105550.0,105540.0,1.2330618]
[1749355011518,0.79820545,105550.0,105540.0,1.2330618]
[1749355015026,0.79820545,105550.0,105540.0,0.8722618]
[1749355015226,0.79820545,105550.0,105540.0,1.2330618]
[1749355020623,0.88703675,105550.0,105540.0,1.17412117]
[1749355023217,0.91833675,105550.0,105540.0,1.17412117]
[1749355029439,0.91833675,105550.0,105540.0,1.11052117]
[1749355030540,0.82950545,105550.0,105540.0,1.25787274]
[1749355031142,0.82950545,105550.0,105540.0,0.89707274]
[1749355031338,0.82950545,105550.0,105540.0,1.25787274]
[1749355032838,0.82950545,105550.0,105540.0,0.89707274]
[1749355033038,0.82950545,105550.0,105540.0,1.25787274]
[1749355035442,0.82950545,105550.0,105540.0,1.30224292]
[1749355035644,0.82950545,105550.0,105540.0,1.25787274]
[1749355037443,0.91833675,105550.0,105540.0,1.30224996]
[1749355037743,0.91833675,105550.0,105540.0,1.25489736]
[1749355038943,0.91833675,105550.0,105540.0,0.82641736]
[1749355039144,0.91833675,105550.0,105540.0,1.22185736]
[1749355039442,0.82950545,105550.0,105540.0,1.17748014]
[1749355041240,0.82950545,105550.0,105540.0,1.21018014]
[1749355044348,0.82950545,105550.0,105540.0,0.84938014]
[1749355044645,0.82950545,105550.0,105540.0,1.57098014]
[1749355045043,0.72497764,105550.0,105540.0,1.57098014]
[1749355045248,0.82950545,105550.0,105540.0,1.57098014]
[1749355046445,0.42814878,105550.0,105540.0,1.57098014]
[1749355046751,0.30796979,105550.0,105540.0,1.65381988]
[1749355046949,0.29816979,105550.0,105540.0,1.65381988]
[1749355047953,0.29816979,105550.0,105540.0,1.59487925]
[1749355048951,0.29816979,105550.0,105540.0,0.87327925]
[1749355049144,0.29816979,105550.0,105540.0,1.59487925]
[1749355050651,0.29816979,105550.0,105540.0,1.65401624]
[1749355052251,0.29816979,105550.0,105540.0,0.93241624]
[1749355052448,0.29816979,105550.0,105540.0,1.65401624]
[1749355057258,0.29816979,105550.0,105540.0,0.93241624]
[1749355057451,0.29816979,105550.0,105540.0,1.65401624]
[1749355060555,0.29816979,105550.0,105540.0,0.93241624]
[1749355060754,0.29816979,105550.0,105540.0,1.65401624]
[1749355066763,0.29816979,105550.0,105540.0,1.59487925]
[1749355068867,0.32856979,105550.0,105540.0,1.59487925]
[1749355070670,0.32856979,105550.0,105540.0,1.65401663]
[1749355072774,0.32856979,105550.0,105540.0,0.93241663]
[1749355072969,0.32856979,105550.0,105540.0,1.65401663]
[1749355073168,0.35856979,105550.0,105540.0,1.65401663]
[1749355074571,0.35856979,105550.0,105540.0,0.93241663]
[1749355074866,0.35856979,105550.0,105540.0,1.29321663]
[1749355075074,0.35856979,105550.0,105540.0,1.65401663]
[1749355076773,0.39096979,105550.0,105540.0,1.65401663]
[1749355078078,0.39076979,105550.0,105540.0,1.65401663]
[1749355080571,0.39076979,105550.0,105540.0,1.59487925]
[1749355082478,0.39076979,105550.0,105540.0,1.56167925]
[1749355082677,0.39076979,105550.0,105540.0,1.52957925]
[1749355090689,0.39076979,105550.0,105540.0,0.80797925]
[1749355090989,0.39076979,105550.0,105540.0,1.52957925]
[1749355099399,0.39076979,105550.0,105540.0,1.58873245]
[1749355099800,0.39076979,105550.0,105540.0,1.16029245]
[1749355100001,0.39076979,105550.0,105540.0,1.58865245]
[1749355101000,0.39076979,105550.0,105540.0,0.86705245]
[1749355101301,0.39076979,105550.0,105540.0,1.22785245]
[1749355102306,0.39076979,105550.0,105540.0,0.86705245]
[1749355102503,0.39076979,105550.0,105540.0,1.22785245]
[1749355106109,0.39076979,105550.0,105540.0,0.86705245]
[1749355106408,0.39076979,105550.0,105540.0,1.22785245]
[1749355107400,0.50076979,105550.0,105540.0,0.79949245]
[1749355107605,0.39076979,105550.0,105540.0,1.22785245]
[1749355108104,0.28624198,105550.0,105540.0,1.22785245]
[1749355108313,0.39076979,105550.0,105540.0,1.16869925]
[1749355108602,0.39096979,105550.0,105540.0,1.19909925]
[1749355110612,0.39096979,105550.0,105540.0,1.25824766]
[1749355111011,0.39096979,105550.0,105540.0,0.89744766]
[1749355111212,0.39096979,105550.0,105540.0,1.61904766]
[1749355111422,0.39096979,105550.0,105540.0,0.89744766]
[1749355111611,0.39096979,105550.0,105540.0,1.61904766]
[1749355116117,0.39096979,105550.0,105540.0,0.89744766]
[1749355116320,0.39096979,105550.0,105540.0,1.61904766]
[1749355120225,0.39096979,105550.0,105540.0,0.89744766]
[1749355120622,0.39096979,105550.0,105540.0,0.95637525]
[1749355120824,0.39096979,105550.0,105540.0,1.67797525]
[1749355123324,0.39096979,105550.0,105540.0,1.55989925]
[1749355126634,0.39096979,105550.0,105540.0,0.83829925]
[1749355126933,0.39096979,105550.0,105540.0,1.55989925]
[1749355128135,0.39096979,105550.0,105540.0,1.56945134]
[1749355128836,0.39096979,105550.0,105540.0,1.55989925]
[1749355129735,0.39096979,105550.0,105540.0,0.83829925]
[1749355130034,0.39096979,105550.0,105540.0,1.55989925]
[1749355130932,0.39096979,105550.0,105540.0,0.99559925]
[1749355131235,0.39096979,105550.0,105540.0,1.55989925]
[1749355132235,0.39096979,105550.0,105540.0,0.83829925]
[1749355132435,0.39096979,105550.0,105540.0,1.55989925]
[1749355132635,0.39096979,105550.0,105540.0,1.56917889]
[1749355133438,0.39096979,105550.0,105540.0,1.68725489]
[1749355133635,0.39096979,105550.0,105540.0,1.72207022]
[1749355138241,0.39076979,105550.0,105540.0,1.72207022]
[1749355142439,0.39076979,105550.0,105540.0,1.63365928]
[1749355142843,0.39076979,105550.0,105540.0,0.91205928]
[1749355143041,0.39076979,105550.0,105540.0,1.63365928]
[1749355143443,0.39076979,105550.0,105540.0,0.91205928]
[1749355143742,0.39076979,105550.0,105540.0,1.63365928]
[1749355151146,0.39076979,105550.0,105540.0,0.91205928]
[1749355151345,0.39076979,105550.0,105540.0,1.63365928]
[1749355154153,0.39076979,105550.0,105540.0,0.91205928]
[1749355154350,0.39076979,105550.0,105540.0,1.63365928]
[1749355154949,0.39076979,105550.0,105540.0,0.91205928]
[1749355155156,0.39076979,105550.0,105540.0,1.63365928]
[1749355158561,0.39076979,105550.0,105540.0,0.91205928]
[1749355158856,0.39076979,105550.0,105540.0,1.63365928]
[1749355160760,0.39076979,105550.0,105540.0,1.66346394]
[1749355161156,0.39076979,105550.0,105540.0,0.94186394]
[1749355161459,0.39076979,105550.0,105540.0,1.66346394]
[1749355162262,0.39076979,105550.0,105540.0,1.63306394]
[1749355163761,0.39076979,105550.0,105540.0,0.91146394]
[1749355163962,0.39076979,105550.0,105540.0,1.63306394]
[1749355167057,0.39076979,105550.0,105540.0,1.6155242]
[1749355169956,0.28624198,105550.0,105540.0,1.6155242]
[1749355170162,0.28624198,105550.0,105540.0,1.55637194]
[1749355170362,0.39076979,105550.0,105540.0,1.55637194]
[1749355170864,0.39076979,105550.0,105540.0,1.58571954]
[1749355172060,0.39076979,105550.0,105540.0,0.86411954]
[1749355172264,0.39076979,105550.0,105540.0,1.58571954]
[1749355172660,0.39076979,105550.0,105540.0,0.86411954]
[1749355172860,0.39076979,105550.0,105540.0,1.58571954]
[1749355173966,0.39076979,105550.0,105540.0,0.86411954]
[1749355174364,0.39076979,105550.0,105540.0,1.58571954]
[1749355175165,0.39076979,105550.0,105540.0,0.86411954]
[1749355175366,0.39076979,105550.0,105540.0,1.58571954]
[1749355176663,0.39076979,105550.0,105540.0,0.86411954]
[1749355177167,0.39076979,105550.0,105540.0,1.58571954]
[1749355178070,0.39076979,105550.0,105540.0,0.86411954]
[1749355178266,0.39076979,105550.0,105540.0,1.58571954]
[1749355178667,0.39076979,105550.0,105540.0,0.86411954]
[1749355178871,0.39076979,105550.0,105540.0,1.58571954]
[1749355180864,0.39076979,105550.0,105540.0,0.86411954]
[1749355181468,0.39076979,105550.0,105540.0,1.58571954]
[1749355182271,0.39076979,105550.0,105540.0,0.86411954]
[1749355182570,0.39076979,105550.0,105540.0,1.58571954]
[1749355182966,0.39076979,105550.0,105540.0,0.86411954]
[1749355183273,0.39076979,105550.0,105540.0,1.58571954]
[1749355187774,0.39076979,105550.0,105540.0,0.86411954]
[1749355187975,0.39076979,105550.0,105540.0,1.58571954]
[1749355189271,0.39076979,105550.0,105540.0,0.86411954]
[1749355189574,0.39076979,105550.0,105540.0,1.58571954]
[1749355190579,0.39076979,105550.0,105540.0,0.86411954]
[1749355190879,0.39076979,105550.0,105540.0,1.58571954]
[1749355191178,0.39076979,105550.0,105540.0,0.86411954]
[1749355191479,0.39076979,105550.0,105540.0,1.58571954]
[1749355191976,0.39076979,105550.0,105540.0,0.86411954]
[1749355192178,0.39076979,105550.0,105540.0,1.58571954]
[1749355192367,0.39076979,105550.0,105540.0,0.86411954]
[1749355192572,0.39076979,105550.0,105540.0,1.58571954]
[1749355195779,0.39076979,105550.0,105540.0,1.58559954]
[1749355198095,0.39076979,105550.0,105540.0,0.86399954]
[1749355198391,0.39076979,105550.0,105540.0,1.58559954]
[1749355199990,0.39076979,105550.0,105540.0,0.86399954]
[1749355200289,0.39076979,105550.0,105540.0,1.58559954]
[1749355200687,0.39076979,105550.0,105540.0,1.5562478]
[1749355203294,0.39076979,105550.0,105540.0,1.5874478]
[1749355203698,0.39076979,105550.0,105540.0,1.6193478]
[1749355208907,0.39076979,105550.0,105540.0,0.8977478]
[1749355209206,0.39076979,105550.0,105540.0,1.6193478]
[1749355209607,0.39076979,105550.0,105540.0,1.7093478]
[1749355210408,0.39076979,105550.0,105540.0,0.9877478]
[1749355210599,0.39076979,105550.0,105540.0,1.7093478]
[1749355210805,0.39076979,105550.0,105540.0,1.73869954]
[1749355220912,0.39076979,105550.0,105540.0,1.01709954]
[1749355221112,0.39076979,105550.0,105540.0,1.73869954]
[1749355222112,0.39076979,105550.0,105540.0,1.89599954]
[1749355222313,0.39076979,105550.0,105540.0,1.73869954]
[1749355223710,0.39076979,105550.0,105540.0,1.90869954]
[1749355225615,0.39076979,105550.0,105540.0,1.18709954]
[1749355225816,0.39076979,105550.0,105540.0,1.90869954]
[1749355227921,0.39076979,105550.0,105540.0,1.90941016]
[1749355230319,0.39076979,105550.0,105540.0,1.18781016]
[1749355230622,0.39076979,105550.0,105540.0,1.90941016]
[1749355230922,0.39076979,105550.0,105540.0,1.18781016]
[1749355231221,0.39076979,105550.0,105540.0,1.90941016]
[1749355231821,0.39076979,105550.0,105540.0,1.18781016]
[1749355232120,0.39076979,105550.0,105540.0,1.90941016]
[1749355232417,0.39076979,105550.0,105540.0,2.06671016]
[1749355232622,0.39076979,105550.0,105540.0,1.90941016]
[1749355232917,0.39076979,105550.0,105540.0,1.84631016]
[1749355234218,0.74076979,105550.0,105540.0,1.17537016]
[1749355234422,0.39076979,105550.0,105540.0,1.60357016]
[1749355234622,0.39076979,105550.0,105540.0,1.64229536]
[1749355234823,0.39076979,105550.0,105540.0,1.52421936]
[1749355243021,0.39076979,105550.0,105540.0,0.80261936]
[1749355243325,0.39076979,105550.0,105540.0,1.52421936]
[1749355245026,0.39076979,105550.0,105540.0,1.53402936]
[1749355246328,0.39076979,105550.0,105540.0,1.65210536]
[1749355246528,0.39076979,105550.0,105540.0,1.53402936]
[1749355248432,0.39076979,105550.0,105540.0,0.81242936]
[1749355248631,0.39076979,105550.0,105540.0,1.53402936]
[1749355249528,0.39076979,105550.0,105540.0,1.56412936]
[1749355250629,0.39076979,105550.0,105540.0,1.62325717]
[1749355252632,0.39076979,105550.0,105540.0,1.78055717]
[1749355252829,0.39076979,105550.0,105540.0,1.62325717]
[1749355257339,0.39076979,105550.0,105540.0,0.90165717]
[1749355257540,0.39076979,105550.0,105540.0,1.62325717]
[1749355260741,0.39076979,105550.0,105540.0,1.56412936]
[1749355262843,0.39076979,105550.0,105540.0,0.84252936]
[1749355263140,0.39076979,105550.0,105540.0,1.56412936]
[1749355265841,0.39076979,105550.0,105540.0,0.84252936]
[1749355266041,0.39076979,105550.0,105540.0,1.56412936]
[1749355266639,0.39076979,105550.0,105540.0,0.84252936]
[1749355266840,0.39076979,105550.0,105540.0,1.56412936]
[1749355272645,0.74076979,105550.0,105540.0,1.56412936]
[1749355272951,0.39076979,105550.0,105540.0,1.56412936]
[1749355273451,0.95076979,105550.0,105540.0,1.56412936]
[1749355273643,0.39076979,105550.0,105540.0,1.56412936]
[1749355276350,0.87076979,105550.0,105540.0,1.56412936]
[1749355276550,0.39076979,105550.0,105540.0,1.56412936]
[1749355276946,0.99076979,105550.0,105540.0,1.56412936]
[1749355277149,0.39076979,105550.0,105540.0,1.56412936]
[1749355278259,0.39076979,105550.0,105540.0,1.20332936]
[1749355278450,0.39076979,105550.0,105540.0,0.84252936]
[1749355278654,0.39076979,105550.0,105540.0,1.20332936]
[1749355279056,0.39076979,105550.0,105540.0,0.84252936]
[1749355279254,0.39076979,105550.0,105540.0,1.20332936]
[1749355281662,0.96076979,105550.0,105540.0,1.20332936]
[1749355281854,0.39076979,105550.0,105540.0,1.20332936]
[1749355284961,1.00076979,105550.0,105540.0,1.20332936]
[1749355285162,0.39076979,105550.0,105540.0,1.20332936]
[1749355285859,0.81076979,105550.0,105540.0,1.20332936]
[1749355286062,0.39076979,105550.0,105540.0,1.20332936]
[1749355287966,0.39076979,105550.0,105540.0,0.84252936]
[1749355288266,0.39076979,105550.0,105540.0,1.20332936]
[1749355290664,0.48868979,105550.0,105540.0,1.20332936]
[1749355291567,0.72868979,105550.0,105540.0,1.20332936]
[1749355291767,0.48868979,105550.0,105540.0,1.20332936]
[1749355292172,0.48868979,105550.0,105540.0,1.32140536]
[1749355292669,0.48868979,105550.0,105540.0,1.20332936]
[1749355292870,0.48868979,105550.0,105540.0,1.32140536]
[1749355293666,0.48868979,105550.0,105540.0,1.20332936]
[1749355294474,0.72868979,105550.0,105540.0,1.20332936]
[1749355294673,0.48868979,105550.0,105540.0,1.20332936]
[1749355295679,0.38416198,105550.0,105540.0,1.20332936]
[1749355295868,0.48868979,105550.0,105540.0,1.20332936]
[1749355296178,0.38416198,105550.0,105540.0,1.20332936]
[1749355296380,0.48868979,105550.0,105540.0,1.20332936]
[1749355296576,0.48868969,105550.0,105540.0,1.23268016]
[1749355298681,0.48868969,105550.0,105540.0,1.32138497]
[1749355299171,0.48868969,105550.0,105540.0,1.68218497]
[1749355300673,0.48868969,105550.0,105540.0,1.62324234]
[1749355304177,0.48868969,105550.0,105540.0,0.90164234]
[1749355304374,0.48868969,105550.0,105540.0,1.62324234]
[1749355308977,0.48868969,105550.0,105540.0,0.90164234]
[1749355309183,0.48868969,105550.0,105540.0,1.62324234]
[1749355310683,0.48868969,105550.0,105540.0,1.68218497]
[1749355311688,0.48868969,105550.0,105540.0,0.96058497]
[1749355311890,0.48868969,105550.0,105540.0,1.68218497]
[1749355312389,0.48868969,105550.0,105540.0,0.96058497]
[1749355312591,0.48868969,105550.0,105540.0,1.68218497]
[1749355313490,0.48868969,105550.0,105540.0,1.78671278]
[1749355314383,0.48868969,105550.0,105540.0,1.66863678]
[1749355314790,0.48868969,105550.0,105540.0,0.94703678]
[1749355314983,0.48868969,105550.0,105540.0,1.66863678]
[1749355315289,0.48868969,105550.0,105540.0,0.94703678]
[1749355315482,0.48868969,105550.0,105540.0,1.66863678]
[1749355316389,0.48868969,105550.0,105540.0,0.94703678]
[1749355316591,0.48868969,105550.0,105540.0,1.66863678]
[1749355317591,0.48868969,105550.0,105540.0,0.94703678]
[1749355317785,0.48868969,105550.0,105540.0,1.66863678]
[1749355320987,0.48868969,105550.0,105540.0,1.66867167]
[1749355321389,0.48868969,105550.0,105540.0,1.78674767]
[1749355322591,0.48868969,105550.0,105540.0,1.68221986]
[1749355322897,0.48868969,105550.0,105540.0,1.78674767]
[1749355323597,0.48868969,105550.0,105540.0,1.69804286]
[1749355326601,0.39076969,105550.0,105540.0,1.69804286]
[1749355326898,0.39076969,105550.0,105540.0,1.69804248]
[1749355328200,0.39076969,105550.0,105540.0,0.97644248]
[1749355328499,0.39076969,105550.0,105540.0,1.69804248]
[1749355328700,0.48864969,105550.0,105540.0,1.69804248]
[1749355329303,0.48864969,105550.0,105540.0,1.59351467]
[1749355333903,0.48864969,105550.0,105540.0,1.68224792]
[1749355336195,0.48864969,105550.0,105540.0,0.96064792]
[1749355336494,0.48864969,105550.0,105540.0,1.68224792]
[1749355338400,0.48864969,105550.0,105540.0,0.96064792]
[1749355338602,0.48864969,105550.0,105540.0,1.68224792]
[1749355339305,0.48864969,105550.0,105540.0,0.96064792]
[1749355339500,0.48864969,105550.0,105540.0,1.68224792]
[1749355340006,0.48864969,105550.0,105540.0,0.96064792]
[1749355340204,0.48864969,105550.0,105540.0,1.68224792]
[1749355340707,0.48864969,105550.0,105540.0,1.6233185]
[1749355342899,0.59864969,105550.0,105540.0,1.6233185]
[1749355343104,0.48864969,105550.0,105540.0,1.6233185]
[1749355343905,0.48864969,105550.0,105540.0,0.9017185]
[1749355344103,0.48864969,105550.0,105540.0,1.6233185]
[1749355348601,1.11864969,105550.0,105540.0,1.1951185]
[1749355348810,0.48864969,105550.0,105540.0,1.6231585]
[1749355349396,0.71864969,105550.0,105540.0,1.6231585]
[1749355349598,0.74864969,105550.0,105540.0,1.6231585]
[1749355349808,0.48864969,105550.0,105540.0,1.6231585]
[1749355350708,0.73864969,105550.0,105540.0,1.56401192]
[1749355350908,0.48864969,105550.0,105540.0,1.56401192]
[1749355351105,0.58864969,105550.0,105540.0,1.56401192]
[1749355351307,0.48864969,105550.0,105540.0,1.56401192]
[1749355351704,0.92864969,105550.0,105540.0,1.56401192]
[1749355351910,0.48864969,105550.0,105540.0,1.56401192]
[1749355352309,0.48864969,105550.0,105540.0,1.68208792]
[1749355353311,0.48864969,105550.0,105540.0,0.96048792]
[1749355353503,0.75864969,105550.0,105540.0,1.68208792]
[1749355353707,0.48864969,105550.0,105540.0,1.68208792]
[1749355354412,0.71864969,105550.0,105540.0,1.68208792]
[1749355354612,0.48864969,105550.0,105540.0,1.68208792]
[1749355357214,0.48864969,105550.0,105540.0,0.96048792]
[1749355357424,0.48864969,105550.0,105540.0,1.59335467]
[1749355358622,0.70864969,105550.0,105540.0,1.59335467]
[1749355358823,0.48864969,105550.0,105540.0,1.59335467]
[1749355360722,0.6831775,105550.0,105540.0,1.56325467]
[1749355361021,0.88864969,105550.0,105540.0,1.651984]
[1749355361217,0.88864969,105550.0,105540.0,1.533908]
[1749355365219,0.57864969,105550.0,105540.0,1.533908]
[1749355365826,0.91864969,105550.0,105540.0,1.533908]
[1749355366025,0.57864969,105550.0,105540.0,1.533908]
[1749355366321,0.93864969,105550.0,105540.0,1.533908]
[1749355366526,0.57864969,105550.0,105540.0,1.533908]
[1749355366722,0.92864969,105550.0,105540.0,1.533908]
[1749355366923,0.57864969,105550.0,105540.0,1.533908]
[1749355369727,0.57864969,105550.0,105540.0,1.651984]
[1749355370424,0.57864969,105550.0,105540.0,1.291184]
[1749355370623,0.57864969,105550.0,105540.0,1.651984]
[1749355371429,0.95864969,105550.0,105540.0,1.651984]
[1749355371630,0.57864969,105550.0,105540.0,1.651984]
[1749355372830,0.57864969,105550.0,105540.0,1.682384]
[1749355373326,0.57864969,105550.0,105540.0,1.651984]
[1749355373629,0.94864969,105550.0,105540.0,1.651984]
[1749355373831,0.57864969,105550.0,105540.0,1.651984]
[1749355374526,0.88864969,105550.0,105540.0,1.651984]
[1749355374727,0.93864969,105550.0,105540.0,1.651984]
[1749355374930,0.91864969,105550.0,105540.0,1.651984]
[1749355375131,0.57864969,105550.0,105540.0,1.651984]
[1749355375431,0.91864969,105550.0,105540.0,1.651984]
[1749355375633,0.57864969,105550.0,105540.0,1.651984]
[1749355375824,0.57864969,105550.0,105540.0,0.930384]
[1749355376024,0.91864969,105550.0,105540.0,1.651984]
[1749355376230,0.93864969,105550.0,105540.0,1.651984]
[1749355376430,0.57864969,105550.0,105540.0,1.651984]
[1749355379228,0.57864969,105550.0,105540.0,1.533908]
[1749355379828,0.94864969,105550.0,105540.0,1.533908]
[1749355380028,0.57864969,105550.0,105540.0,1.533908]
[1749355380726,0.89864969,105550.0,105540.0,1.533908]
[1749355380923,0.57864969,105550.0,105540.0,1.533908]
[1749355383538,0.57864969,105550.0,105540.0,1.564708]
[1749355385440,0.57864969,105550.0,105540.0,1.682784]
[1749355387637,0.94864969,105550.0,105540.0,1.682784]
[1749355387841,0.57864969,105550.0,105540.0,1.682784]
[1749355389343,0.57864969,105550.0,105540.0,1.68299486]
[1749355390847,0.57864969,105550.0,105540.0,1.62407074]
[1749355395047,0.91864969,105550.0,105540.0,1.62407074]
[1749355395346,0.57864969,105550.0,105540.0,1.62407074]
[1749355396449,0.88864969,105550.0,105540.0,1.62407074]
[1749355396641,0.57864969,105550.0,105540.0,1.62407074]
[1749355397644,0.89864969,105550.0,105540.0,1.62407074]
[1749355397846,0.95864969,105550.0,105540.0,1.62407074]
[1749355398051,0.57864969,105550.0,105540.0,1.62407074]
[1749355398252,0.89864969,105550.0,105540.0,1.62407074]
[1749355398452,0.57864969,105550.0,105540.0,1.62407074]
[1749355399152,0.57860969,105550.0,105540.0,1.62407074]
[1749355400745,0.89860969,105550.0,105540.0,1.56491886]
[1749355400951,0.57860969,105550.0,105540.0,1.56491886]
[1749355403451,0.82860969,105550.0,105540.0,1.56491886]
[1749355403656,0.80860969,105550.0,105540.0,1.56491886]
[1749355404151,0.57860969,105550.0,105540.0,1.56491886]
[1749355404356,0.80860969,105550.0,105540.0,1.56491886]
[1749355404745,0.79860969,105550.0,105540.0,1.56491886]
[1749355404949,0.80860969,105550.0,105540.0,1.56491886]
[1749355405357,0.57860969,105550.0,105540.0,1.56491886]
[1749355405556,0.80860969,105550.0,105540.0,1.56491886]
[1749355405957,0.79860969,105550.0,105540.0,1.56491886]
[1749355407752,0.82860969,105550.0,105540.0,1.56491886]
[1749355407956,0.80860969,105550.0,105540.0,1.56491886]
[1749355408555,0.81860969,105550.0,105540.0,1.56491886]
[1749355408758,0.81860969,105550.0,105540.0,1.53411886]
[1749355409559,0.57860969,105550.0,105540.0,1.53411886]
[1749355409760,0.79860969,105550.0,105540.0,1.53411886]
[1749355410056,0.57860969,105550.0,105540.0,1.53411886]
[1749355410261,0.79860969,105550.0,105540.0,1.53411886]
[1749355410660,0.57860969,105550.0,105540.0,1.53411886]
[1749355411058,0.83860969,105550.0,105540.0,1.53411886]
[1749355411259,0.78860969,105550.0,105540.0,1.53411886]
[1749355412253,0.78860969,105550.0,105540.0,1.59319786]
[1749355412660,0.78860969,105550.0,105540.0,1.54584766]
[1749355416567,0.74098969,105550.0,105540.0,1.54584766]
[1749355417362,0.69741847,105550.0,105540.0,1.11788766]
[1749355418366,0.64979847,105550.0,105540.0,1.11788766]
[1749355418666,0.64979847,105550.0,105540.0,0.39628766]
[1749355418866,0.64979847,105550.0,105540.0,0.75708766]
[1749355419368,0.60217847,105550.0,105540.0,0.75708766]
[1749355419568,0.63257847,105550.0,105540.0,0.75708766]
[1749355420367,0.53681659,105550.0,105540.0,0.75708766]
[1749355420569,0.75770969,105550.0,105540.0,0.78778766]
[1749355421366,0.71008969,105550.0,105540.0,0.78778766]
[1749355421667,0.93940969,105550.0,105540.0,0.78778766]
[1749355422370,0.89178969,105550.0,105540.0,0.78778766]
[1749355423362,0.84416969,105550.0,105540.0,0.78778766]
[1749355424370,0.89438969,105550.0,105540.0,0.78778766]
[1749355424569,1.07940969,105550.0,105540.0,0.42698766]
[1749355425069,1.07940969,105550.0,105540.0,0.78778766]
[1749355425464,1.03178969,105550.0,105540.0,0.42698766]
[1749355425865,1.03178969,105550.0,105540.0,0.78778766]
[1749355426373,0.98416969,105550.0,105540.0,0.78778766]
[1749355427473,1.04512628,105550.0,105540.0,0.78778766]
[1749355427669,1.04512628,105550.0,105540.0,0.81978766]
[1749355428468,0.99750628,105550.0,105540.0,0.81978766]
[1749355428670,0.99750628,105550.0,105540.0,0.85108766]
[1749355429575,0.94988628,105550.0,105540.0,0.85108766]
[1749355430576,1.01750969,105550.0,105540.0,0.85108766]
[1749355430774,1.10632937,105550.0,105540.0,0.80671244]
[1749355431379,1.05870937,105550.0,105540.0,0.80671244]
[1749355432378,1.01108937,105550.0,105540.0,0.80671244]
[1749355433376,0.96346937,105550.0,105540.0,0.44591244]
[1749355433582,0.96346937,105550.0,105540.0,0.80671244]
[1749355434480,0.91584937,105550.0,105540.0,0.80671244]
[1749355435381,0.86822937,105550.0,105540.0,0.80671244]
[1749355435577,1.08462937,105550.0,105540.0,0.80671244]
[1749355436487,1.03700937,105550.0,105540.0,0.80671244]
[1749355439287,1.06770937,105550.0,105540.0,0.74755344]
[1749355440893,0.97888969,105550.0,105540.0,0.76235833]
[1749355441491,1.0834175,105550.0,105540.0,0.76235833]
[1749355444598,1.0834175,105550.0,105540.0,0.40155833]
[1749355444796,1.0834175,105550.0,105540.0,0.76235833]
[1749355444997,1.0834175,105550.0,105540.0,0.80672741]
[1749355446496,1.0834175,105550.0,105540.0,0.44592741]
[1749355446691,1.0834175,105550.0,105540.0,0.80672741]
[1749355446901,0.1894111,105540.0,105530.0,0.69810821]
[1749355447100,1.16251421,105540.0,105530.0,1.09999888]
[1749355447290,1.16251421,105540.0,105530.0,0.67207888]
[1749355447690,1.23902804,105540.0,105530.0,0.67207888]
[1749355448198,1.15020836,105540.0,105530.0,0.67207888]
[1749355448590,1.04568055,105540.0,105530.0,0.67507888]
[1749355449101,1.04568055,105540.0,105530.0,0.6159177]
[1749355449398,1.04568055,105540.0,105530.0,0.6179177]
[1749355450400,1.04568055,105540.0,105530.0,0.6488177]
[1749355459703,1.04568055,105540.0,105530.0,0.6468177]
[1749355459704,1.04668055,105540.0,105530.0,0.6468177]
[1749355460002,1.04668055,105540.0,105530.0,0.6438177]
[1749355460803,1.13550023,105540.0,105530.0,0.6438177]
[1749355461000,1.13954901,105540.0,105530.0,0.6438177]
[1749355467003,1.23738901,105540.0,105530.0,0.6438177]
[1749355469404,0.1894285,105530.0,105520.0,0.00014177]
[1749355469604,1.11933457,105530.0,105520.0,0.00014177]
[1749355469803,1.15053457,105530.0,105520.0,0.00014177]
[1749355470011,1.69670293,105530.0,105520.0,0.00014177]
[1749355470213,1.57849457,105530.0,105520.0,0.00014177]
[1749355470513,1.57849457,105530.0,105520.0,0.03434177]
[1749355470714,1.57849457,105530.0,105520.0,0.06704177]
[1749355471009,1.47396676,105530.0,105520.0,0.06704177]
[1749355471213,1.57849457,105530.0,105520.0,0.06704177]
[1749355471807,1.61149457,105530.0,105520.0,0.00214177]
[1749355472213,1.61249457,105530.0,105520.0,0.00114177]
[1749355472413,1.61249457,105530.0,105520.0,0.00014177]
[1749355475210,1.61249457,105530.0,105520.0,0.044143]
[1749355475919,1.71702238,105530.0,105520.0,0.044143]
[1749355477414,1.61249457,105530.0,105520.0,0.044143]
[1749355479314,1.52374412,105530.0,105520.0,0.044143]
[1749355480519,1.97329457,105530.0,105520.0,0.044143]
[1749355482223,1.97329457,105530.0,105520.0,0.00014177]
[1749355484826,0.047363,105520.0,105500.0,0.05910438]
[1749355485126,0.49636002,105510.0,105500.0,0.10745027]
[1749355485320,1.09636002,105510.0,105500.0,0.13945027]
[1749355486018,1.09636002,105510.0,105500.0,0.14245027]
[1749355486223,1.09636002,105510.0,105500.0,0.14545027]
[1749355486423,1.13838179,105510.0,105500.0,0.14545027]
[1749355486622,1.13838179,105510.0,105500.0,0.14245027]
[1749355486829,1.13838179,105510.0,105500.0,0.14545027]
[1749355487028,1.13838179,105510.0,105500.0,0.33493257]
[1749355488230,1.13838179,105510.0,105500.0,0.14545027]
[1749355489222,1.92722179,105510.0,105500.0,0.05015027]
[1749355489428,0.1894822,105500.0,105490.0,0.4546]
[1749355489629,0.93853782,105500.0,105490.0,0.4546]
[1749355490429,0.60853782,105500.0,105490.0,0.4546]
[1749355490734,0.89853782,105500.0,105490.0,0.4546]
[1749355491122,0.93853782,105500.0,105490.0,0.4546]
[1749355491321,0.93853782,105500.0,105490.0,0.4576]
[1749355491521,0.93853782,105500.0,105490.0,0.4606]
[1749355492133,0.93853782,105500.0,105490.0,0.0998]
[1749355493733,1.29933782,105500.0,105490.0,0.0998]
[1749355497832,1.0902822,105500.0,105490.0,0.0998]
[1749355498033,1.29933782,105500.0,105490.0,0.0998]
[1749355498734,1.29933782,105500.0,105490.0,0.2893]
[1749355499134,1.29933782,105500.0,105490.0,0.0998]
[1749355500537,1.29933782,105500.0,105490.0,0.29334878]
[1749355501235,1.29933782,105500.0,105490.0,0.10384878]
[1749355501736,1.29933782,105500.0,105490.0,0.2893]
[1749355502536,1.29933782,105500.0,105490.0,0.29334878]
[1749355503637,1.29933782,105500.0,105490.0,0.2893]
[1749355504637,1.29933782,105500.0,105490.0,0.29334878]
[1749355505643,1.29933782,105500.0,105490.0,0.2893]
[1749355508743,0.93853782,105500.0,105490.0,0.29334878]
[1749355509144,0.93853782,105500.0,105490.0,0.33738581]